[Event "*** Titled Tuesday Blitz"]
[Site "Chess.com"]
[Date "2020.11.24"]
[Round "2"]
[White "Caisachess"]
[Black "Klavdia_Nik"]
[Result "1-0"]
[WhiteElo "2398"]
[BlackElo "2087"]
[TimeControl "180+1"]
[EndTime "10:30:56 PST"]
[Termination "Caisachess won by resignation"]

1. e4 {[%clk 0:03:00.9]} 1... c5 {[%clk 0:02:58.2]} 2. c3 {[%clk 0:03:00.6]}
2... b6 {[%clk 0:02:51.8]} 3. d4 {[%clk 0:03:00]} 3... Bb7 {[%clk 0:02:51.9]} 4.
Bd3 {[%clk 0:03:00.3]} 4... g6 {[%clk 0:02:50.6]} 5. Nf3 {[%clk 0:03:00.1]} 5...
Bg7 {[%clk 0:02:50.4]} 6. O-O {[%clk 0:02:59.1]} 6... d6 {[%clk 0:02:48.5]} 7.
Re1 {[%clk 0:02:59.2]} 7... e6 {[%clk 0:02:48]} 8. a4 {[%clk 0:02:54]} 8... a5
{[%clk 0:02:40.7]} 9. Na3 {[%clk 0:02:52.1]} 9... Ne7 {[%clk 0:02:24.7]} 10.
Bb5+ {[%clk 0:02:44]} 10... Nd7 {[%clk 0:02:17.8]} 11. dxc5 {[%clk 0:02:39.4]}
11... dxc5 {[%clk 0:02:08.7]} 12. Nc4 {[%clk 0:02:32.6]} 12... Bc6 {[%clk
0:02:04.2]} 13. Nd6+ {[%clk 0:02:12.7]} 13... Kf8 {[%clk 0:02:03.8]} 14. Ng5
{[%clk 0:02:06.3]} 14... Bxb5 {[%clk 0:01:35.4]} 15. axb5 {[%clk 0:02:02.7]}
15... Ne5 {[%clk 0:01:28.4]} 16. f4 {[%clk 0:01:57.2]} 16... h6 {[%clk
0:01:28.4]} 17. fxe5 {[%clk 0:01:26.5]} 17... hxg5 {[%clk 0:01:26.6]} 18. Qf3
{[%clk 0:01:18]} 18... Nf5 {[%clk 0:01:21.2]} 19. exf5 {[%clk 0:01:16.5]} 19...
gxf5 {[%clk 0:01:21]} 20. Qb7 {[%clk 0:01:13.1]} 1-0

[Event "*** Titled Tuesday Blitz"]
[Site "Chess.com"]
[Date "2020.11.24"]
[Round "2"]
[White "RaneshRatnesan"]
[Black "Astaneh"]
[Result "0-1"]
[WhiteElo "2135"]
[BlackElo "2596"]
[TimeControl "180+1"]
[EndTime "10:31:01 PST"]
[Termination "Astaneh won by resignation"]

1. Nf3 {[%clk 0:03:00.9]} 1... Nf6 {[%clk 0:02:55.1]} 2. c4 {[%clk 0:02:59.6]}
2... g6 {[%clk 0:02:52.3]} 3. b4 {[%clk 0:02:59.6]} 3... Bg7 {[%clk 0:02:51]} 4.
Bb2 {[%clk 0:02:59.7]} 4... O-O {[%clk 0:02:51.2]} 5. g3 {[%clk 0:02:57]} 5...
d6 {[%clk 0:02:51.2]} 6. Bg2 {[%clk 0:02:56.9]} 6... e5 {[%clk 0:02:51.3]} 7. d3
{[%clk 0:02:57.5]} 7... Nc6 {[%clk 0:02:51]} 8. Qb3 {[%clk 0:02:55.2]} 8... e4
{[%clk 0:02:47.6]} 9. dxe4 {[%clk 0:02:38]} 9... Nxe4 {[%clk 0:02:47.6]} 10. O-O
{[%clk 0:02:36.4]} 10... Re8 {[%clk 0:02:43.3]} 11. e3 {[%clk 0:02:32.1]} 11...
Be6 {[%clk 0:02:39.8]} 12. Bxg7 {[%clk 0:02:20.5]} 12... Kxg7 {[%clk 0:02:38]}
13. Nd4 {[%clk 0:02:21]} 13... Nxd4 {[%clk 0:02:33.9]} 14. exd4 {[%clk
0:02:21.9]} 14... d5 {[%clk 0:02:33.1]} 15. c5 {[%clk 0:02:22.1]} 15... Qf6
{[%clk 0:02:31.1]} 16. Qb2 {[%clk 0:02:07.7]} 16... h5 {[%clk 0:02:03.1]} 17.
Nd2 {[%clk 0:02:07.5]} 17... Bf5 {[%clk 0:01:56.8]} 18. h4 {[%clk 0:02:00.6]}
18... Re7 {[%clk 0:01:49.4]} 19. Nf3 {[%clk 0:01:59.7]} 19... Rae8 {[%clk
0:01:45.8]} 20. Rae1 {[%clk 0:01:53.9]} 20... b6 {[%clk 0:01:36.6]} 21. cxb6
{[%clk 0:01:30.3]} 21... axb6 {[%clk 0:01:36.2]} 22. b5 {[%clk 0:01:22.5]} 22...
Nc5 {[%clk 0:01:30.9]} 23. Rxe7 {[%clk 0:01:15.8]} 23... Rxe7 {[%clk 0:01:31]}
24. Ne5 {[%clk 0:01:16.4]} 24... Nd3 {[%clk 0:01:25.8]} 25. Nxd3 {[%clk
0:01:12.8]} 25... Bxd3 {[%clk 0:01:26.7]} 26. Rd1 {[%clk 0:01:12.2]} 26... Re2
{[%clk 0:01:25.3]} 0-1

[Event "*** Titled Tuesday Blitz"]
[Site "Chess.com"]
[Date "2020.11.24"]
[Round "2"]
[White "igorknyazev"]
[Black "kleopl"]
[Result "0-1"]
[WhiteElo "2048"]
[BlackElo "2518"]
[TimeControl "180+1"]
[EndTime "10:31:09 PST"]
[Termination "kleopl won on time"]

1. e4 {[%clk 0:03:00.9]} 1... c6 {[%clk 0:02:59.5]} 2. Nc3 {[%clk 0:02:58.1]}
2... d5 {[%clk 0:03:00.4]} 3. d4 {[%clk 0:02:58.4]} 3... a6 {[%clk 0:03:00.4]}
4. Nf3 {[%clk 0:02:57.2]} 4... Bg4 {[%clk 0:02:59.6]} 5. h3 {[%clk 0:02:55.8]}
5... Bh5 {[%clk 0:02:58.4]} 6. g4 {[%clk 0:02:46.1]} 6... Bg6 {[%clk 0:02:58.1]}
7. exd5 {[%clk 0:02:43.2]} 7... cxd5 {[%clk 0:02:57.8]} 8. Bg2 {[%clk
0:02:43.6]} 8... Nc6 {[%clk 0:02:54.1]} 9. Ne5 {[%clk 0:02:39.8]} 9... e6 {[%clk
0:02:51.6]} 10. Nxg6 {[%clk 0:02:31.8]} 10... hxg6 {[%clk 0:02:51.1]} 11. Bf4
{[%clk 0:02:31.9]} 11... Qb6 {[%clk 0:02:47.1]} 12. Na4 {[%clk 0:02:03.6]} 12...
Qxd4 {[%clk 0:02:30.6]} 13. Qxd4 {[%clk 0:01:36.5]} 13... Nxd4 {[%clk
0:02:31.5]} 14. Nb6 {[%clk 0:01:35.9]} 14... Rd8 {[%clk 0:02:30]} 15. Kd2 {[%clk
0:01:18.9]} 15... Bd6 {[%clk 0:02:26.4]} 16. Be3 {[%clk 0:01:14.7]} 16... Nc6
{[%clk 0:02:24.4]} 17. Rhe1 {[%clk 0:01:10.3]} 17... Nf6 {[%clk 0:02:23.6]} 18.
c3 {[%clk 0:01:00.8]} 18... O-O {[%clk 0:02:21.7]} 19. Rad1 {[%clk 0:00:52]}
19... Bc7 {[%clk 0:02:15]} 20. Na4 {[%clk 0:00:47.1]} 20... Na5 {[%clk
0:02:10.8]} 21. Kc2 {[%clk 0:00:43.6]} 21... Nc4 {[%clk 0:02:07.9]} 22. Bg5
{[%clk 0:00:27.7]} 22... Bd6 {[%clk 0:02:02.6]} 0-1

[Event "*** Titled Tuesday Blitz"]
[Site "Chess.com"]
[Date "2020.11.24"]
[Round "2"]
[White "ViktoriyaTarasova"]
[Black "Algeriano22"]
[Result "0-1"]
[WhiteElo "2274"]
[BlackElo "2617"]
[TimeControl "180+1"]
[EndTime "10:31:15 PST"]
[Termination "Algeriano22 won by resignation"]

1. d4 {[%clk 0:03:00.9]} 1... Nf6 {[%clk 0:02:59.9]} 2. c4 {[%clk 0:03:00.8]}
2... d6 {[%clk 0:02:59.7]} 3. Nc3 {[%clk 0:03:00.1]} 3... g6 {[%clk 0:02:59.8]}
4. e4 {[%clk 0:02:59.3]} 4... Bg7 {[%clk 0:03:00.2]} 5. h3 {[%clk 0:02:59.8]}
5... O-O {[%clk 0:03:00.3]} 6. Be3 {[%clk 0:02:59.4]} 6... c6 {[%clk 0:03:00]}
7. Qc2 {[%clk 0:02:49.4]} 7... e5 {[%clk 0:02:54.4]} 8. d5 {[%clk 0:02:48.8]}
8... Na6 {[%clk 0:02:52.3]} 9. g4 {[%clk 0:02:40.7]} 9... cxd5 {[%clk
0:02:46.7]} 10. cxd5 {[%clk 0:02:40]} 10... Bd7 {[%clk 0:02:46.8]} 11. Be2
{[%clk 0:02:30.3]} 11... Rc8 {[%clk 0:02:34.7]} 12. Qd2 {[%clk 0:01:42]} 12...
Nc5 {[%clk 0:02:30.7]} 13. f3 {[%clk 0:01:39.3]} 13... a5 {[%clk 0:02:30.9]} 14.
h4 {[%clk 0:01:21.2]} 14... h5 {[%clk 0:02:30.5]} 15. g5 {[%clk 0:01:20.2]}
15... Nh7 {[%clk 0:02:29.4]} 16. Nh3 {[%clk 0:01:18.3]} 16... a4 {[%clk
0:02:28.1]} 17. Rb1 {[%clk 0:01:12.5]} 17... Qa5 {[%clk 0:02:21.9]} 18. Nf2
{[%clk 0:01:08.9]} 18... b5 {[%clk 0:02:20.6]} 19. Bxc5 {[%clk 0:01:05.5]} 19...
Rxc5 {[%clk 0:02:02.9]} 20. Nd3 {[%clk 0:00:57.6]} 20... Rcc8 {[%clk 0:01:58.9]}
21. a3 {[%clk 0:00:57.3]} 21... Qd8 {[%clk 0:01:39.2]} 22. Nb4 {[%clk
0:00:56.7]} 22... f6 {[%clk 0:01:39.2]} 23. Rg1 {[%clk 0:00:45.4]} 23... fxg5
{[%clk 0:01:38.6]} 24. hxg5 {[%clk 0:00:46.1]} 24... Rf4 {[%clk 0:01:39.1]} 25.
Kf2 {[%clk 0:00:40.5]} 25... Nxg5 {[%clk 0:01:36.6]} 26. Rg2 {[%clk 0:00:36.4]}
26... Rxc3 {[%clk 0:01:35.2]} 0-1

[Event "*** Titled Tuesday Blitz"]
[Site "Chess.com"]
[Date "2020.11.24"]
[Round "2"]
[White "arjwezhrtdrz"]
[Black "aleksandrovaleksei"]
[Result "0-1"]
[WhiteElo "2318"]
[BlackElo "2600"]
[TimeControl "180+1"]
[EndTime "10:31:31 PST"]
[Termination "aleksandrovaleksei won by resignation"]

1. e4 {[%clk 0:03:00.5]} 1... e5 {[%clk 0:02:59.4]} 2. Nf3 {[%clk 0:03:00]} 2...
Nc6 {[%clk 0:02:59.4]} 3. Nc3 {[%clk 0:03:00.6]} 3... Nf6 {[%clk 0:02:58.4]} 4.
Bb5 {[%clk 0:03:00.2]} 4... Bd6 {[%clk 0:02:56.6]} 5. O-O {[%clk 0:02:59.6]}
5... O-O {[%clk 0:02:56.3]} 6. d3 {[%clk 0:02:59.8]} 6... h6 {[%clk 0:02:52.8]}
7. Bc4 {[%clk 0:02:55.3]} 7... Na5 {[%clk 0:02:42.3]} 8. Bb3 {[%clk 0:02:54.1]}
8... Re8 {[%clk 0:02:40.3]} 9. h3 {[%clk 0:02:52.4]} 9... Nxb3 {[%clk
0:02:37.2]} 10. axb3 {[%clk 0:02:52.2]} 10... Bf8 {[%clk 0:02:37.5]} 11. Be3
{[%clk 0:02:51.9]} 11... d6 {[%clk 0:02:35.2]} 12. Nh2 {[%clk 0:02:49.9]} 12...
d5 {[%clk 0:02:32]} 13. Nxd5 {[%clk 0:02:49]} 13... Nxd5 {[%clk 0:02:31.6]} 14.
exd5 {[%clk 0:02:49.1]} 14... Qxd5 {[%clk 0:02:32.2]} 15. Qf3 {[%clk 0:02:49.7]}
15... Be6 {[%clk 0:02:29.4]} 16. Qxd5 {[%clk 0:02:39.4]} 16... Bxd5 {[%clk
0:02:28.8]} 17. Rfe1 {[%clk 0:02:40.1]} 17... a5 {[%clk 0:02:22.2]} 18. Bd2
{[%clk 0:02:38.1]} 18... b6 {[%clk 0:02:19.9]} 19. Nf1 {[%clk 0:02:37.2]} 19...
h5 {[%clk 0:02:02.7]} 20. Ne3 {[%clk 0:02:28.3]} 20... Be6 {[%clk 0:02:01.1]}
21. Nc4 {[%clk 0:02:24.2]} 21... f6 {[%clk 0:02:00.6]} 22. f4 {[%clk 0:02:19.6]}
22... Bc5+ {[%clk 0:01:49.8]} 23. Kf1 {[%clk 0:02:19.2]} 23... Bd5 {[%clk
0:01:33.1]} 24. fxe5 {[%clk 0:02:10.6]} 24... fxe5 {[%clk 0:01:32.7]} 25. Be3
{[%clk 0:02:10.9]} 25... Bb4 {[%clk 0:01:28.2]} 26. c3 {[%clk 0:02:10.5]} 26...
Bf8 {[%clk 0:01:26.2]} 27. Bf2 {[%clk 0:02:09.8]} 27... e4 {[%clk 0:01:25.6]}
28. dxe4 {[%clk 0:02:06.3]} 28... Bxe4 {[%clk 0:01:24.5]} 29. Kg1 {[%clk
0:01:59.5]} 29... Bc2 {[%clk 0:01:21.4]} 30. Rxe8 {[%clk 0:01:45.8]} 30... Rxe8
{[%clk 0:01:20.5]} 31. Nd2 {[%clk 0:01:46.4]} 31... Re2 {[%clk 0:01:16.7]} 32.
Nf3 {[%clk 0:01:35.7]} 32... Bxb3 {[%clk 0:01:13.6]} 33. Bg3 {[%clk 0:01:30.3]}
33... Bc5+ {[%clk 0:01:08.5]} 34. Nd4 {[%clk 0:01:29.2]} 34... Bd5 {[%clk
0:01:05.2]} 35. Bf2 {[%clk 0:01:27.2]} 35... Rxb2 {[%clk 0:01:03.1]} 36. Be3
{[%clk 0:01:12.2]} 36... Rxg2+ {[%clk 0:01:01.7]} 0-1

[Event "*** Titled Tuesday Blitz"]
[Site "Chess.com"]
[Date "2020.11.24"]
[Round "2"]
[White "Eliwood44"]
[Black "GoltsevDmitry2000"]
[Result "1-0"]
[WhiteElo "2462"]
[BlackElo "2672"]
[TimeControl "180+1"]
[EndTime "10:31:32 PST"]
[Termination "Eliwood44 won by resignation"]

1. d4 {[%clk 0:03:00.9]} 1... Nf6 {[%clk 0:02:46.2]} 2. Nf3 {[%clk 0:02:56.9]}
2... e6 {[%clk 0:02:45.1]} 3. e3 {[%clk 0:02:56.9]} 3... b6 {[%clk 0:02:44]} 4.
Bd3 {[%clk 0:02:56.5]} 4... Bb7 {[%clk 0:02:44.1]} 5. O-O {[%clk 0:02:56.5]}
5... d6 {[%clk 0:02:43.9]} 6. c4 {[%clk 0:02:56.5]} 6... Nbd7 {[%clk 0:02:44.3]}
7. Nc3 {[%clk 0:02:56.5]} 7... Be7 {[%clk 0:02:44.8]} 8. e4 {[%clk 0:02:53.9]}
8... e5 {[%clk 0:02:44.7]} 9. d5 {[%clk 0:02:53.2]} 9... a5 {[%clk 0:02:45.1]}
10. Nh4 {[%clk 0:02:52.2]} 10... g6 {[%clk 0:02:43.9]} 11. f4 {[%clk 0:02:46]}
11... Nxd5 {[%clk 0:02:40]} 12. exd5 {[%clk 0:02:39.3]} 12... Bxh4 {[%clk
0:02:39]} 13. f5 {[%clk 0:02:33.2]} 13... Nc5 {[%clk 0:02:32.2]} 14. Ne4 {[%clk
0:02:19.8]} 14... Nxe4 {[%clk 0:02:30.3]} 15. Bxe4 {[%clk 0:02:19.6]} 15... Bg5
{[%clk 0:02:29.5]} 16. Qa4+ {[%clk 0:02:10.6]} 16... Kf8 {[%clk 0:02:17.1]} 17.
fxg6 {[%clk 0:02:07.4]} 17... hxg6 {[%clk 0:02:12.9]} 18. Bxg6 {[%clk
0:02:06.8]} 18... Kg7 {[%clk 0:02:06.5]} 19. Bxf7 {[%clk 0:01:39.2]} 19... Bxc1
{[%clk 0:02:05.1]} 20. Raxc1 {[%clk 0:01:38.1]} 20... Qh4 {[%clk 0:02:04.3]} 21.
h3 {[%clk 0:01:33.1]} 21... Bc8 {[%clk 0:01:52.3]} 22. Be6 {[%clk 0:01:24]}
22... Qg5 {[%clk 0:01:32.5]} 23. Bxc8 {[%clk 0:01:17.3]} 23... Raxc8 {[%clk
0:01:33.4]} 24. Qd7+ {[%clk 0:01:16.5]} 24... Kh6 {[%clk 0:01:18.5]} 25. Qe6+
{[%clk 0:01:10.6]} 25... Kh5 {[%clk 0:01:12]} 26. Rf5 {[%clk 0:01:08.4]} 26...
Rcg8 {[%clk 0:01:09]} 27. Rcf1 {[%clk 0:01:01.4]} 27... Rh6 {[%clk 0:01:02.9]}
28. Qxg8 {[%clk 0:00:59]} 1-0

[Event "*** Titled Tuesday Blitz"]
[Site "Chess.com"]
[Date "2020.11.24"]
[Round "2"]
[White "SergeyShtyka"]
[Black "JRenatoMaranhao"]
[Result "1-0"]
[WhiteElo "2364"]
[BlackElo "1887"]
[TimeControl "180+1"]
[EndTime "10:31:41 PST"]
[Termination "SergeyShtyka won by resignation"]

1. e4 {[%clk 0:03:00.5]} 1... c6 {[%clk 0:03:00.9]} 2. Nf3 {[%clk 0:03:00.1]}
2... d5 {[%clk 0:03:01.6]} 3. Nc3 {[%clk 0:03:00.3]} 3... dxe4 {[%clk
0:03:01.4]} 4. Nxe4 {[%clk 0:03:00.3]} 4... Bf5 {[%clk 0:03:02.3]} 5. Ng3 {[%clk
0:03:00]} 5... Bg4 {[%clk 0:03:02.9]} 6. Bc4 {[%clk 0:02:56.5]} 6... Nf6 {[%clk
0:03:01.1]} 7. Bxf7+ {[%clk 0:02:44.3]} 7... Kxf7 {[%clk 0:03:01]} 8. Ne5+
{[%clk 0:02:44.3]} 8... Ke8 {[%clk 0:03:00.3]} 9. Nxg4 {[%clk 0:02:44]} 9...
Nbd7 {[%clk 0:02:58.6]} 10. O-O {[%clk 0:02:41.4]} 10... g6 {[%clk 0:02:52.4]}
11. d4 {[%clk 0:02:35]} 11... Bg7 {[%clk 0:02:52.5]} 12. Bh6 {[%clk 0:02:15.3]}
12... Kf7 {[%clk 0:02:51.3]} 13. Bxg7 {[%clk 0:02:11.5]} 13... Kxg7 {[%clk
0:02:51.4]} 14. Nxf6 {[%clk 0:02:11.2]} 14... exf6 {[%clk 0:02:51]} 15. Re1
{[%clk 0:02:10.3]} 15... Re8 {[%clk 0:02:49.7]} 16. Qg4 {[%clk 0:01:59.7]} 16...
Nb6 {[%clk 0:02:27.3]} 17. h4 {[%clk 0:01:44.5]} 17... Qd5 {[%clk 0:02:26.7]}
18. b3 {[%clk 0:01:29.5]} 18... Rad8 {[%clk 0:02:22.7]} 19. Rxe8 {[%clk
0:01:12]} 19... Rxe8 {[%clk 0:02:23.6]} 20. h5 {[%clk 0:01:11.1]} 20... Re7
{[%clk 0:02:03.7]} 21. c4 {[%clk 0:01:08.8]} 21... Qg5 {[%clk 0:02:02.5]} 22.
Qxg5 {[%clk 0:01:03.7]} 22... fxg5 {[%clk 0:02:02.6]} 23. hxg6 {[%clk
0:01:02.7]} 23... Kxg6 {[%clk 0:02:03.5]} 24. Kf1 {[%clk 0:01:01.5]} 24... Rd7
{[%clk 0:01:35.7]} 25. Rd1 {[%clk 0:01:00.1]} 25... h5 {[%clk 0:01:30.2]} 26.
Ne4 {[%clk 0:00:59.7]} 26... h4 {[%clk 0:01:25.4]} 27. Nc5 {[%clk 0:00:59.2]}
27... Rh7 {[%clk 0:01:24.1]} 28. f3 {[%clk 0:00:56]} 28... h3 {[%clk 0:01:17.7]}
29. gxh3 {[%clk 0:00:54.7]} 29... Rxh3 {[%clk 0:01:17.3]} 30. Kg2 {[%clk
0:00:54.3]} 30... Rh7 {[%clk 0:01:13.5]} 31. Re1 {[%clk 0:00:54.3]} 31... Kf5
{[%clk 0:01:13]} 32. Re5+ {[%clk 0:00:51.3]} 32... Kf6 {[%clk 0:01:10.6]} 33.
Ne4+ {[%clk 0:00:49.3]} 1-0

[Event "*** Titled Tuesday Blitz"]
[Site "Chess.com"]
[Date "2020.11.24"]
[Round "2"]
[White "1977Ivan"]
[Black "lucachess49"]
[Result "1-0"]
[WhiteElo "2667"]
[BlackElo "2354"]
[TimeControl "180+1"]
[EndTime "10:31:43 PST"]
[Termination "1977Ivan won by resignation"]

1. d4 {[%clk 0:03:00.9]} 1... Nf6 {[%clk 0:02:59.4]} 2. Nf3 {[%clk 0:03:00.2]}
2... e6 {[%clk 0:02:59]} 3. c4 {[%clk 0:03:00.7]} 3... a6 {[%clk 0:02:58.3]} 4.
e3 {[%clk 0:02:58.1]} 4... d5 {[%clk 0:02:53.2]} 5. Nc3 {[%clk 0:02:57.1]} 5...
c5 {[%clk 0:02:44.3]} 6. cxd5 {[%clk 0:02:53.9]} 6... Nxd5 {[%clk 0:02:43.9]} 7.
Bd3 {[%clk 0:02:54.5]} 7... Nc6 {[%clk 0:02:37.7]} 8. O-O {[%clk 0:02:53.7]}
8... cxd4 {[%clk 0:02:35.3]} 9. exd4 {[%clk 0:02:52.9]} 9... Be7 {[%clk
0:02:33.8]} 10. Re1 {[%clk 0:02:52.7]} 10... O-O {[%clk 0:02:28.1]} 11. a3
{[%clk 0:02:52.4]} 11... Bf6 {[%clk 0:02:27.4]} 12. Bc2 {[%clk 0:02:46.8]} 12...
g6 {[%clk 0:02:17.1]} 13. Bh6 {[%clk 0:02:44.6]} 13... Re8 {[%clk 0:02:16.7]}
14. Qd2 {[%clk 0:02:44.2]} 14... b5 {[%clk 0:02:11.8]} 15. Rad1 {[%clk
0:02:41.2]} 15... Bb7 {[%clk 0:02:11]} 16. Ne4 {[%clk 0:02:40.7]} 16... Bh8
{[%clk 0:02:05.8]} 17. h4 {[%clk 0:02:39.3]} 17... Ra7 {[%clk 0:02:03.8]} 18. h5
{[%clk 0:02:37.2]} 18... Nf6 {[%clk 0:01:59]} 19. Bg5 {[%clk 0:02:30.5]} 19...
Nxe4 {[%clk 0:01:52.4]} 20. Bxe4 {[%clk 0:02:31.4]} 20... Qd7 {[%clk 0:01:40.5]}
21. d5 {[%clk 0:02:17]} 21... exd5 {[%clk 0:01:29.1]} 22. Bxd5 {[%clk
0:02:16.3]} 22... Ne5 {[%clk 0:01:03.1]} 23. Nxe5 {[%clk 0:02:08.9]} 23... Bxe5
{[%clk 0:00:51.8]} 24. Bxb7 {[%clk 0:01:34.9]} 24... Qxd2 {[%clk 0:00:28.4]} 25.
Rxd2 {[%clk 0:01:34.5]} 25... Rxb7 {[%clk 0:00:28]} 26. Rde2 {[%clk 0:01:31.1]}
1-0

[Event "*** Titled Tuesday Blitz"]
[Site "Chess.com"]
[Date "2020.11.24"]
[Round "2"]
[White "Son_of_Sultan"]
[Black "Mr_Heisenberg13"]
[Result "1/2-1/2"]
[WhiteElo "2706"]
[BlackElo "2494"]
[TimeControl "180+1"]
[EndTime "10:31:48 PST"]
[Termination "Game drawn by repetition"]

1. d4 {[%clk 0:03:00.9]} 1... Nf6 {[%clk 0:02:58.5]} 2. Nf3 {[%clk 0:02:59.7]}
2... d5 {[%clk 0:02:53.7]} 3. e3 {[%clk 0:02:58.9]} 3... c5 {[%clk 0:02:48.9]}
4. Bd3 {[%clk 0:02:57.9]} 4... Nc6 {[%clk 0:02:47.8]} 5. O-O {[%clk 0:02:57]}
5... cxd4 {[%clk 0:02:47.5]} 6. exd4 {[%clk 0:02:52.7]} 6... g6 {[%clk
0:02:47.3]} 7. c3 {[%clk 0:02:45.2]} 7... Bg7 {[%clk 0:02:42.9]} 8. Bf4 {[%clk
0:02:36.7]} 8... O-O {[%clk 0:02:41]} 9. Nbd2 {[%clk 0:02:35.5]} 9... Nh5 {[%clk
0:02:35.5]} 10. Be3 {[%clk 0:02:31.9]} 10... Qc7 {[%clk 0:02:33.8]} 11. Re1
{[%clk 0:02:30.1]} 11... Nf4 {[%clk 0:02:31.5]} 12. Bf1 {[%clk 0:02:26.7]} 12...
Bf5 {[%clk 0:02:27.2]} 13. Ne5 {[%clk 0:02:15]} 13... Bxe5 {[%clk 0:02:10.3]}
14. dxe5 {[%clk 0:02:14.4]} 14... Nd3 {[%clk 0:02:10.4]} 15. Bxd3 {[%clk
0:02:09.1]} 15... Bxd3 {[%clk 0:02:11.3]} 16. Nb3 {[%clk 0:02:04.6]} 16... Bc4
{[%clk 0:02:07.1]} 17. Bh6 {[%clk 0:02:00.8]} 17... Rfd8 {[%clk 0:02:05.2]} 18.
e6 {[%clk 0:02:00.3]} 18... f6 {[%clk 0:02:03.7]} 19. Nd4 {[%clk 0:01:52.3]}
19... Nxd4 {[%clk 0:02:00.2]} 20. Qxd4 {[%clk 0:01:50.5]} 20... Qb6 {[%clk
0:01:56]} 21. Qxb6 {[%clk 0:01:39.1]} 21... axb6 {[%clk 0:01:56.9]} 22. a3
{[%clk 0:01:32.9]} 22... Bb3 {[%clk 0:01:53.3]} 23. Be3 {[%clk 0:01:29.7]} 23...
Rd6 {[%clk 0:01:48.3]} 24. Bd4 {[%clk 0:01:29.9]} 24... Rc8 {[%clk 0:01:45]} 25.
Re3 {[%clk 0:01:29.4]} 25... Rcc6 {[%clk 0:01:43.8]} 26. Rae1 {[%clk 0:01:30.3]}
26... Bc2 {[%clk 0:01:43.1]} 27. g4 {[%clk 0:01:30.1]} 27... Kf8 {[%clk
0:01:28.2]} 28. f3 {[%clk 0:01:28.4]} 28... Bb3 {[%clk 0:01:25.6]} 29. Kf2
{[%clk 0:01:27.4]} 29... b5 {[%clk 0:01:23.8]} 30. Kg3 {[%clk 0:01:27.2]} 30...
Bc2 {[%clk 0:01:20.8]} 31. h4 {[%clk 0:01:26.2]} 31... h6 {[%clk 0:01:14]} 32.
Kf4 {[%clk 0:01:14.5]} 32... g5+ {[%clk 0:01:13.7]} 33. Kg3 {[%clk 0:01:14.1]}
33... Bh7 {[%clk 0:01:13.3]} 34. hxg5 {[%clk 0:01:09.7]} 34... hxg5 {[%clk
0:01:11.4]} 35. f4 {[%clk 0:01:08.7]} 35... gxf4+ {[%clk 0:01:08.9]} 36. Kxf4
{[%clk 0:01:09.6]} 36... Bg8 {[%clk 0:01:09.3]} 37. Kf5 {[%clk 0:01:07.4]} 37...
Bh7+ {[%clk 0:01:09.5]} 38. Kf4 {[%clk 0:01:07.4]} 38... Bg8 {[%clk 0:01:09.8]}
39. Kf5 {[%clk 0:00:55.2]} 39... Bh7+ {[%clk 0:01:09.4]} 40. Kf4 {[%clk
0:00:55.4]} 1/2-1/2

[Event "*** Titled Tuesday Blitz"]
[Site "Chess.com"]
[Date "2020.11.24"]
[Round "2"]
[White "sopo-tereladze"]
[Black "Isajevsky_Anton"]
[Result "0-1"]
[WhiteElo "2322"]
[BlackElo "2593"]
[TimeControl "180+1"]
[EndTime "10:31:48 PST"]
[Termination "Isajevsky_Anton won by resignation"]

1. d4 {[%clk 0:03:00.9]} 1... d5 {[%clk 0:02:58.9]} 2. Nf3 {[%clk 0:03:01]} 2...
Nf6 {[%clk 0:02:58.7]} 3. Bf4 {[%clk 0:03:01.1]} 3... c5 {[%clk 0:02:57.5]} 4.
e3 {[%clk 0:02:59.7]} 4... Nc6 {[%clk 0:02:56.8]} 5. c3 {[%clk 0:02:58.4]} 5...
cxd4 {[%clk 0:02:55.5]} 6. exd4 {[%clk 0:02:59.3]} 6... Bf5 {[%clk 0:02:50]} 7.
Bd3 {[%clk 0:02:57.2]} 7... Bxd3 {[%clk 0:02:49.3]} 8. Qxd3 {[%clk 0:02:58.1]}
8... e6 {[%clk 0:02:50.1]} 9. Nbd2 {[%clk 0:02:57.3]} 9... Bd6 {[%clk
0:02:49.6]} 10. Bg5 {[%clk 0:02:57.3]} 10... O-O {[%clk 0:02:46.6]} 11. O-O
{[%clk 0:02:57.1]} 11... Rb8 {[%clk 0:02:45.8]} 12. Rae1 {[%clk 0:02:54.6]}
12... h6 {[%clk 0:02:43.5]} 13. Bh4 {[%clk 0:02:54.1]} 13... Be7 {[%clk
0:02:41.4]} 14. Ne5 {[%clk 0:02:53]} 14... Nxe5 {[%clk 0:02:39.7]} 15. dxe5
{[%clk 0:02:52.2]} 15... Nd7 {[%clk 0:02:38.9]} 16. Bxe7 {[%clk 0:02:53.1]}
16... Qxe7 {[%clk 0:02:39.2]} 17. f4 {[%clk 0:02:52.6]} 17... Nc5 {[%clk
0:02:09]} 18. Qg3 {[%clk 0:02:49.2]} 18... b5 {[%clk 0:02:07.7]} 19. f5 {[%clk
0:02:40.9]} 19... exf5 {[%clk 0:02:07.5]} 20. Rxf5 {[%clk 0:02:41.8]} 20... b4
{[%clk 0:02:06.3]} 21. Rf6 {[%clk 0:02:13.3]} 21... bxc3 {[%clk 0:02:01.8]} 22.
bxc3 {[%clk 0:02:06.1]} 22... Rb2 {[%clk 0:01:54.7]} 23. Nf3 {[%clk 0:01:06.2]}
23... Ne4 {[%clk 0:01:53.1]} 24. Rxe4 {[%clk 0:00:50.5]} 24... dxe4 {[%clk
0:01:52.9]} 25. Nd4 {[%clk 0:00:46.3]} 25... Rb1+ {[%clk 0:01:31.1]} 26. Kf2
{[%clk 0:00:44.7]} 26... e3+ {[%clk 0:01:31.4]} 27. Kxe3 {[%clk 0:00:39.2]}
27... Re8 {[%clk 0:01:26.7]} 28. Ke4 {[%clk 0:00:21.4]} 28... Qxf6 {[%clk
0:01:20.8]} 0-1